bitfinex/quotes_ETHUSD_20241030
["timestamp","ask_amount","ask_price","bid_price","bid_amount"]
[1730295784364,7.46846,2678.0,2677.4,3.73485]
[1730295784572,7.46846,2678.0,2677.5,3.7348]
[1730295784573,3.73422,2678.0,2677.5,3.7348]
[1730295784774,3.7345,2677.8,2677.2,7.47032]
[1730295785103,3.73568,2676.9,2676.4,3.73631]
[1730295785247,3.73587,2676.8,2676.2,3.73656]
[1730295785449,3.73587,2676.8,2676.3,0.373656]
[1730295785677,3.73546,2677.1,2676.5,3.73613]
[1730295785883,3.73561,2677.0,2676.4,3.73622]
[1730295786151,3.73546,2677.1,2676.5,7.47232]
[1730295786399,3.73519,2677.3,2676.7,3.73587]
[1730295786595,0.8131,2677.4,2676.4,0.4109876]
[1730295786754,0.7934,2677.9,2677.4,3.73488]
[1730295786955,0.7934,2677.9,2677.1,0.55]
[1730295787198,0.7934,2677.9,2677.5,3.73472]
[1730295787414,3.73448,2677.8,2677.3,0.55]
[1730295787787,3.73448,2677.8,2677.3,4.28509]
[1730295788096,3.73448,2677.8,2677.3,8.02011]
[1730295788305,0.7934,2677.9,2677.4,3.73483]
[1730295788483,4.52768,2677.9,2677.4,3.73483]
[1730295788662,3.73455,2677.7,2677.3,1.11830523]
[1730295788867,3.73535,2677.2,2676.6,3.73599]
[1730295789068,0.787,2677.3,2676.9,3.73563]
[1730295789306,3.73532,2677.2,2676.7,3.7358]
[1730295789514,0.787,2677.3,2676.8,3.73571]
[1730295789715,4.52217,2677.3,2676.7,3.7358]
[1730295789929,1.612722,2677.3,2676.0,3.73681]
[1730295790085,0.787,2677.3,2676.8,3.73572]
[1730295790284,3.73534,2677.2,2676.6,7.47201]
[1730295790587,3.7357,2676.9,2676.4,3.73622]
[1730295790814,7.47089,2677.1,2676.4,4.109942]
[1730295791014,3.73563,2677.0,2676.4,3.73634]
[1730295791215,3.73559,2677.0,2676.4,3.73622]
[1730295791429,3.73569,2676.9,2676.4,3.73622]
[1730295791625,3.7358,2676.8,2676.4,3.73622]
[1730295791923,4.96823383,2677.3,2676.2,3.73653]
[1730295792122,3.73576,2676.9,2676.4,3.73634]
[1730295792324,3.73576,2676.9,2676.2,3.73653]
[1730295792531,4.4952,2676.8,2676.3,3.73647]
[1730295793135,3.73552,2677.0,2676.3,3.7365]
[1730295793283,4.49492,2677.0,2676.5,3.73613]
[1730295793488,0.7594,2677.0,2676.6,3.736]
[1730295793729,4.49495,2677.0,2676.5,3.73613]
[1730295793896,4.49495,2677.0,2676.4,0.55]
[1730295794090,3.73587,2676.8,2676.3,3.73637]
[1730295794297,3.73605,2676.7,2676.1,3.73668]
[1730295794481,3.73605,2676.7,2676.1,8.220753]
[1730295794482,7.47212,2676.7,2676.1,8.220753]
[1730295794686,3.73616,2676.6,2676.1,4.484043]
[1730295794935,3.73588,2676.8,2676.2,3.73656]
[1730295795298,3.73575,2676.9,2676.2,3.73656]
[1730295795498,4.94063383,2677.0,2675.8,0.05606301]
[1730295795499,3.73604,2676.7,2675.8,0.05606301]
[1730295795699,3.73588,2676.8,2676.3,3.73649]
[1730295796032,3.73588,2676.8,2676.3,3.73643]
[1730295796033,3.73582,2676.8,2676.3,3.73643]
[1730295796393,3.73582,2676.8,2676.3,3.73641]
[1730295796729,3.73582,2676.8,2676.4,3.73635]
[1730295796934,4.49501,2677.0,2676.0,3.0]
[1730295796935,0.7594,2677.0,2676.0,3.0]
[1730295797086,3.73533,2677.2,2676.7,3.73586]
[1730295797287,3.73533,2677.2,2676.8,0.373586]
[1730295797531,0.812,2677.3,2676.7,3.73585]
[1730295797741,3.73511,2677.3,2676.8,3.73572]
[1730295797888,7.47029,2677.3,2676.8,3.73572]
[1730295798083,3.73511,2677.3,2676.8,3.73572]
[1730295798739,3.73524,2677.2,2676.8,3.73572]
[1730295799552,3.73524,2677.2,2675.6,0.37156882]
[1730295799553,0.8174,2676.7,2675.6,0.37156882]
[1730295799697,0.8174,2676.7,2674.5,4.46412946]
[1730295799698,3.7374,2675.7,2675.2,0.37156882]
[1730295800034,3.7374,2675.7,2675.0,7.47645]
[1730295800242,3.7374,2675.7,2675.1,3.73815]
[1730295800405,3.73733,2675.7,2674.8,3.73849]
[1730295800588,3.73755,2675.6,2675.0,3.73822]
[1730295801026,4.23720338,2675.7,2675.0,3.73822]
[1730295801402,4.23721338,2675.7,2674.9,3.7384]
[1730295801608,0.8184,2675.3,2674.7,3.73873]
[1730295801803,0.8184,2675.3,2674.7,7.47738]
[1730295802128,0.8184,2675.3,2674.7,3.73865]
[1730295802129,4.55632,2675.3,2674.7,3.73865]
[1730295802294,4.55632,2675.3,2674.7,7.4773]
[1730295802629,0.8184,2675.3,2674.8,3.73851]
[1730295803185,0.8184,2675.3,2674.8,3.73849]
[1730295803384,0.8184,2675.3,2674.9,3.73836]
[1730295803643,4.55633,2675.3,2674.7,3.73865]
[1730295803815,0.8184,2675.3,2674.8,0.55]
[1730295803994,0.8184,2675.3,2674.9,3.73838]
[1730295804316,0.8184,2675.3,2674.9,3.73844]
[1730295804843,3.73817,2675.1,2674.5,3.73892]
[1730295805053,3.73817,2675.1,2674.4,0.373929]
[1730295805253,3.73866,2674.8,2673.8,3.73992]
[1730295805554,3.73846,2674.9,2674.3,7.47843]
[1730295805757,0.7839,2675.0,2674.5,3.73893]
[1730295805960,3.73797,2675.3,2674.7,3.73861]
[1730295806179,4.52187,2675.3,2674.8,3.73852]
[1730295806364,4.52187,2675.3,2674.6,3.73877]
[1730295806649,4.52187,2675.3,2674.8,3.73851]
[1730295806957,5.39218038,2675.3,2674.8,3.73851]
[1730295807313,5.39221038,2675.3,2674.7,3.73872]
[1730295807518,3.73825,2675.1,2674.5,3.739]
[1730295807826,3.73825,2675.1,2674.6,3.73886]
[1730295808060,3.73825,2675.1,2674.5,3.7389]
[1730295808363,4.18101937,2675.1,2674.5,3.7389]
[1730295808525,4.18101937,2675.1,2674.6,3.73876]
[1730295808762,4.18101937,2675.1,2674.5,3.7389]
[1730295808968,3.73833,2675.0,2674.5,3.7389]
[1730295809147,4.18101937,2675.1,2674.5,7.47784]
[1730295809353,0.44276937,2675.1,2674.5,3.7389]
[1730295809691,0.44276937,2675.1,2674.7,3.73871]
[1730295809861,3.73854,2674.9,2674.4,3.73915]
[1730295810195,4.99402032,2675.0,2674.4,3.73915]
[1730295810196,0.7932,2675.0,2674.6,3.73873]
[1730295810393,0.7932,2675.0,2674.0,0.55]
[1730295810394,0.7932,2675.0,2674.3,0.55]
[1730295810554,0.7932,2675.0,2674.6,3.73876]
[1730295811463,0.7932,2675.0,2674.4,3.73904]
[1730295811765,3.73855,2674.9,2674.4,3.73904]
[1730295812076,3.73855,2674.9,2674.4,3.73903]
[1730295812279,0.7932,2675.0,2674.4,3.73903]
[1730295812520,3.7932,2675.0,2674.5,3.73892]
[1730295812699,3.7932,2675.0,2674.4,3.73903]
[1730295812851,3.73847,2674.9,2674.5,3.739]
[1730295813052,3.73847,2674.9,2674.4,3.73903]
[1730295813257,0.7932,2675.0,2674.4,3.73912]
[1730295813557,0.79,2674.9,2674.4,3.73912]
[1730295813788,0.79,2674.9,2674.6,3.73876]
[1730295813988,3.75723,2675.8,2674.4,0.55]
[1730295813989,0.79,2675.3,2674.4,0.55]
[1730295814257,0.79,2675.7,2675.4,3.73769]
[1730295814494,0.79,2675.7,2675.1,3.73808]
[1730295814692,0.79,2675.7,2675.3,3.73783]
[1730295815211,0.79,2675.7,2675.5,3.7375]
[1730295815559,0.7691,2676.1,2675.7,3.73726]
[1730295815760,0.7691,2676.1,2675.8,3.73719]
[1730295815963,0.7691,2676.1,2675.7,3.73733]
[1730295816160,0.7691,2676.1,2675.6,3.73747]
[1730295816373,3.73694,2676.0,2675.4,4.111429]
[1730295816579,3.73694,2676.0,2675.5,3.7376]
[1730295816789,3.73707,2675.9,2675.4,4.111429]
[1730295816985,3.73707,2675.9,2675.4,3.73765]
[1730295817185,3.73707,2675.9,2675.5,3.73761]
[1730295817409,0.8128,2675.8,2675.3,0.55]
[1730295817708,0.8128,2675.8,2675.4,7.47542]
[1730295817913,0.8128,2675.8,2675.5,3.73751]
[1730295818134,0.8128,2675.8,2675.6,3.73739]
[1730295818788,3.73661,2676.3,2675.4,3.73775]
[1730295818974,3.0,2676.6,2675.7,3.73725]
[1730295818975,0.8289,2676.1,2675.7,3.73725]
[1730295819178,0.8289,2676.1,2675.4,3.73767]
[1730295819179,3.73705,2676.0,2675.4,3.73767]
[1730295819377,3.73705,2676.0,2675.5,3.73753]
[1730295819676,4.56571,2676.1,2675.5,3.73753]
[1730295819876,3.73713,2675.9,2675.4,3.73771]
[1730295820179,3.73707,2675.9,2675.4,3.73767]
[1730295820382,3.73703,2676.0,2675.5,3.73751]
[1730295820615,0.8289,2676.1,2675.6,3.73747]
[1730295820935,0.8289,2676.1,2675.6,3.73734]
[1730295821219,4.56569,2676.1,2675.4,3.73767]
[1730295821521,3.73727,2675.8,2675.3,3.73786]
[1730295821693,3.73727,2675.8,2675.2,3.73802]
[1730295821881,3.73755,2675.6,2675.1,3.73815]
[1730295822213,4.18123383,2675.8,2674.6,0.3741]
[1730295822377,3.73782,2675.4,2674.1,7.47914]
[1730295822576,3.73782,2675.4,2674.8,3.73852]
[1730295822774,3.738,2675.3,2674.7,3.73866]
[1730295822975,3.73776,2675.4,2674.9,3.73838]
[1730295823376,7.47562,2675.4,2674.9,3.73838]
[1730295823580,3.73776,2675.4,2674.8,3.73858]
[1730295823832,3.73791,2675.3,2674.8,3.73858]
[1730295823980,3.73805,2675.2,2674.5,3.7389]
[1730295824176,0.8087,2675.1,2674.6,4.66268]
[1730295824392,3.73842,2675.0,2674.5,3.739]
[1730295824797,3.73846,2674.9,2674.4,3.73911]
[1730295825120,0.8087,2675.1,2674.0,3.0]
[1730295825322,3.73845,2674.9,2674.2,3.73942]
[1730295825497,3.73871,2674.8,2674.2,3.73933]
[1730295825819,0.8121,2674.6,2673.3,8.5072303]
[1730295826029,0.8121,2674.6,2674.1,3.73949]
[1730295826030,4.55099,2674.6,2674.1,3.73949]
[1730295826236,3.7393,2674.3,2673.8,3.73995]
[1730295826525,7.47869,2674.3,2673.8,3.73996]
[1730295826729,0.7957,2674.1,2673.6,3.74018]
[1730295826887,4.53528,2674.1,2673.6,3.74018]
[1730295827083,0.7957,2674.1,2673.7,3.7401]
[1730295827318,0.7957,2674.1,2673.6,3.74018]
[1730295827515,0.7957,2674.1,2673.8,3.73998]
[1730295827786,0.7706,2674.4,2674.1,3.7395]
[1730295828284,0.7706,2674.4,2673.9,3.73975]
[1730295828488,0.7706,2674.4,2674.0,3.73969]
[1730295828799,0.7706,2674.4,2673.9,3.73975]
[1730295828992,0.7706,2674.7,2674.2,3.73942]
[1730295829402,4.50936,2674.7,2674.1,3.73955]
[1730295829725,0.7706,2674.7,2674.2,3.73943]
[1730295829911,3.73911,2674.5,2673.0,7.48222]
[1730295830234,4.50958,2674.6,2673.5,7.48073]
[1730295830235,3.73965,2674.1,2673.5,7.48073]
[1730295830387,3.73929,2674.3,2673.6,3.74015]
[1730295830586,0.7706,2673.6,2673.0,3.74108]
[1730295830823,0.7706,2673.6,2673.0,3.74107]
[1730295830986,4.5109,2673.6,2673.1,3.74093]
[1730295831190,4.51096,2673.6,2673.0,3.74108]
[1730295831417,0.7706,2673.6,2673.0,3.74104]
[1730295831615,0.7706,2673.6,2673.2,3.74083]
[1730295831823,0.7706,2673.6,2673.0,3.74104]
[1730295831824,0.7706,2673.6,2673.0,0.374104]
[1730295831997,0.7706,2673.6,2673.2,3.74074]
[1730295832195,3.73967,2674.1,2673.5,3.74029]
[1730295832487,0.8169,2674.1,2673.5,3.74029]
[1730295832684,0.8169,2674.1,2673.2,0.55]
[1730295832890,0.8169,2674.1,2673.9,3.73981]
[1730295833191,0.8169,2674.5,2674.0,3.73961]
[1730295833406,0.8169,2674.5,2674.2,3.73931]
[1730295833791,0.8249,2674.9,2673.9,3.73982]
[1730295833990,4.56336,2674.9,2674.3,3.73922]
[1730295834218,0.8249,2674.9,2674.0,0.373982]
[1730295834419,0.8249,2674.9,2674.3,3.73923]
[1730295834420,4.56337,2674.9,2674.3,3.73923]
[1730295834738,4.56337,2674.9,2674.3,3.73921]
[1730295835736,8.74460383,2674.9,2674.3,3.73921]
[1730295836031,9.61906421,2674.9,2674.3,3.73921]
[1730295836191,3.73867,2674.8,2674.3,3.73921]
[1730295836525,5.88059421,2674.9,2673.9,3.7398]
[1730295836829,5.88059421,2674.9,2673.4,3.0]
[1730295836830,9.61905421,2674.9,2674.4,3.73915]
[1730295836996,0.8249,2674.9,2674.2,3.73941]
[1730295837336,3.73861,2674.8,2674.3,3.73929]
[1730295837507,0.751,2674.7,2674.3,3.73916]
[1730295837709,0.751,2674.7,2674.4,3.73903]
[1730295837921,0.751,2674.7,2674.5,3.73901]
[1730295838529,0.751,2674.7,2674.6,3.73887]
[1730295838735,0.7702,2675.0,2674.7,3.73869]
[1730295839044,0.7702,2675.0,2674.6,3.73887]
[1730295839045,0.7702,2675.0,2674.6,3.73879]
[1730295839196,0.7702,2675.0,2674.6,4.112669]
[1730295839537,0.8169,2675.4,2674.9,3.73845]
[1730295839735,4.55475,2675.4,2674.7,7.4773]
[1730295839938,0.8169,2675.4,2674.9,3.73837]
[1730295840121,0.8169,2675.4,2675.0,3.73823]
[1730295840326,0.8169,2675.4,2675.2,3.73793]
[1730295840641,3.73687,2676.1,2675.0,0.74766]
[1730295840795,0.8258,2676.0,2675.2,3.73803]
[1730295841112,0.8258,2676.0,2675.2,3.73793]
[1730295841309,3.73751,2675.6,2675.0,7.47642]
[1730295841515,0.8224,2675.5,2675.0,3.7382]
[1730295841709,7.4757,2675.4,2674.8,3.7385]
[1730295841909,0.8224,2675.5,2674.8,3.7385]
[1730295842112,1.278396,2675.5,2674.9,3.73838]
[1730295842331,1.278396,2675.5,2675.0,3.73824]
[1730295842638,1.278396,2675.5,2675.1,3.73814]
[1730295842840,1.278396,2675.5,2675.0,3.73823]
[1730295843426,5.016086,2675.5,2675.0,3.73823]
[1730295843629,0.8224,2675.5,2675.2,3.73792]
[1730295843803,0.8224,2675.5,2675.4,3.73775]
[1730295844011,0.7757,2675.8,2675.3,3.73788]
[1730295844205,3.73736,2675.7,2675.1,3.73805]
[1730295844401,4.964179,2675.8,2675.1,3.7381]
[1730295844605,3.73734,2675.7,2675.1,3.7381]
[1730295844844,3.73751,2675.6,2675.1,3.73808]
[1730295845148,3.73743,2675.7,2675.2,3.73792]
[1730295845342,0.7757,2675.8,2674.8,3.73859]
[1730295845541,0.7757,2675.8,2675.5,3.73751]
[1730295845846,0.7757,2675.8,2675.2,0.27879524]
[1730295846051,0.7757,2675.8,2675.3,3.73778]
[1730295846810,4.51293,2675.8,2675.3,7.4756]
[1730295847038,4.51293,2675.8,2675.3,3.73778]
[1730295847234,0.7757,2675.8,2675.3,7.47559]
[1730295847857,0.7757,2675.8,2675.5,3.73751]
[1730295848010,0.7757,2675.8,2675.1,3.73807]
[1730295848345,4.5129,2675.8,2675.1,3.73807]
[1730295848549,3.73756,2675.6,2674.8,0.27877321]
[1730295848863,4.18123383,2676.0,2674.8,0.27877321]
[1730295848864,0.7549,2675.2,2674.8,0.27877321]
[1730295849150,0.7549,2675.2,2674.7,3.73863]
[1730295849353,0.7549,2675.2,2674.5,3.73891]
[1730295849563,0.7549,2675.2,2674.3,0.2787765]
[1730295849708,0.7549,2675.2,2674.6,3.73884]
[1730295850185,3.73817,2675.1,2674.6,3.7388]
[1730295850402,3.73817,2675.1,2674.2,0.44602914]
[1730295850540,0.7549,2675.2,2673.7,0.374025]
[1730295850541,0.7549,2675.2,2674.8,3.73857]
[1730295850740,0.7549,2675.2,2674.9,3.73844]
[1730295850981,0.7549,2675.2,2674.8,3.7385]
[1730295851388,0.7549,2675.2,2675.0,3.73824]
[1730295851588,0.7549,2675.2,2674.8,3.7385]
[1730295851946,3.73817,2675.1,2674.6,3.73878]
[1730295852746,3.73817,2675.1,2674.1,6.73952]
[1730295852747,0.7549,2675.2,2675.1,3.73817]
[1730295852945,3.0,2675.6,2674.3,3.0]
[1730295852946,0.7726,2675.6,2674.4,0.27881538]
[1730295853171,3.73764,2675.5,2675.0,3.7383]
[1730295853500,3.73764,2675.5,2675.0,3.73824]
[1730295853643,3.73764,2675.5,2674.8,3.73851]
[1730295853851,4.51009,2675.6,2675.0,3.73817]
[1730295854079,0.7726,2675.6,2675.0,3.73817]
[1730295854291,3.7377,2675.5,2674.9,3.73844]
[1730295854627,0.7726,2675.6,2675.0,3.73824]
[1730295854924,0.7726,2675.6,2674.9,3.73836]
[1730295855085,0.7726,2675.6,2675.0,3.7382]
[1730295855281,4.51008,2675.6,2675.1,3.7381]
[1730295856176,3.73769,2675.5,2675.0,3.7382]
[1730295856379,3.73769,2675.5,2675.1,3.73816]
[1730295856586,4.51008,2675.6,2675.1,3.73816]
[1730295856785,1.223608,2675.6,2674.9,3.73841]
[1730295857025,0.7726,2675.6,2675.1,3.73814]
[1730295857235,0.7726,2675.6,2674.6,0.27876951]
[1730295857418,4.188692,2675.5,2675.0,3.73822]
[1730295857748,3.73769,2675.5,2675.0,3.73822]
[1730295858232,3.73786,2675.4,2674.9,3.73837]
[1730295858392,3.73792,2675.3,2674.9,3.73837]
[1730295858816,3.73776,2675.4,2674.9,3.73837]
[1730295859046,3.73762,2675.5,2675.0,3.7382]
[1730295859545,3.73761,2675.5,2674.9,3.73844]
[1730295859730,3.73784,2675.4,2674.9,3.73844]
[1730295859931,3.7379,2675.3,2674.9,3.73844]
[1730295860255,7.47531,2675.5,2675.0,3.7383]
[1730295860461,3.73782,2675.4,2674.9,3.73836]
[1730295860608,0.824803,2675.4,2674.5,3.73891]
[1730295860804,0.7757,2675.0,2674.6,3.7388]
[1730295861139,0.7757,2675.0,2674.7,3.73865]
[1730295861321,0.7757,2675.0,2674.6,3.7388]
[1730295861911,0.7757,2675.0,2674.7,3.73865]
[1730295862137,0.8246,2675.3,2674.9,3.73845]
[1730295862341,0.8246,2675.3,2675.0,3.73825]
[1730295862909,4.56256,2675.3,2674.6,3.73874]
[1730295863155,3.73806,2675.2,2674.8,3.73857]
[1730295863355,3.73806,2675.2,2674.8,4.112427]
[1730295863566,0.7685,2674.7,2674.3,3.73923]
[1730295864059,3.73915,2674.4,2673.9,3.73978]
[1730295864408,3.73936,2674.3,2673.7,4.114045]
[1730295864609,0.787,2674.1,2673.7,7.854095]
[1730295864809,0.787,2674.1,2673.8,3.73992]
[1730295865054,0.787,2674.1,2673.7,0.374025]
[1730295865209,0.787,2674.1,2673.8,3.73998]
[1730295865675,3.6036086,2674.7,2673.8,3.73998]
[1730295865676,0.8291,2674.4,2673.9,3.73985]
[1730295865891,0.8291,2674.4,2674.0,3.7397]
[1730295866182,0.8291,2674.4,2674.0,3.73963]
[1730295866340,4.56826,2674.4,2674.0,3.73963]
[1730295866537,0.8291,2674.4,2674.0,3.73963]
[1730295866737,0.8291,2674.4,2673.9,3.73972]
[1730295866973,8.30767,2674.4,2673.9,3.73972]
[1730295867284,3.73959,2674.1,2673.6,3.74026]
[1730295867451,3.73959,2674.1,2673.5,3.74029]
[1730295867649,3.73959,2674.1,2673.6,3.74021]
[1730295867849,3.73938,2674.3,2673.7,3.74012]
[1730295868064,3.73957,2674.1,2673.5,3.74029]
[1730295868365,3.73938,2674.3,2673.6,3.74026]
[1730295868570,3.73938,2674.3,2673.7,3.74013]
[1730295868880,1.659867,2674.4,2673.7,3.74008]
[1730295868881,3.73951,2674.2,2673.7,3.74008]
[1730295869344,3.73931,2674.3,2673.8,3.73996]
[1730295869545,3.73944,2674.2,2673.8,3.73996]
[1730295870087,3.7393,2674.3,2673.8,3.73996]
[1730295870238,3.73944,2674.2,2673.7,3.74006]
[1730295870556,3.73966,2674.1,2673.6,3.74017]
[1730295870756,3.73971,2674.0,2673.6,3.74017]
[1730295870957,3.73958,2674.1,2673.6,7.48035]
[1730295871156,3.73958,2674.1,2673.6,3.74017]
[1730295871488,3.73944,2674.2,2673.7,3.74003]
[1730295871639,4.56836,2674.4,2673.5,0.374029]
[1730295871640,0.8291,2674.4,2673.5,0.374029]
[1730295871844,3.73936,2674.3,2673.8,3.73998]
[1730295872153,3.73944,2674.2,2673.7,7.48008]
[1730295872371,0.83079,2674.2,2673.5,3.74033]
[1730295872535,0.8108,2673.8,2673.3,0.55]
[1730295872741,0.8108,2673.8,2673.4,3.74053]
[1730295873037,3.74029,2673.6,2673.1,3.74085]
[1730295873379,4.55089,2673.8,2673.3,3.74067]
[1730295873542,3.74023,2673.7,2673.2,3.74081]
[1730295873737,4.55089,2673.8,2673.1,3.74085]
[1730295873738,8.29098,2673.8,2673.3,3.74067]
[1730295873943,0.8108,2673.8,2673.4,3.74055]
[1730295874143,0.8055,2674.1,2673.7,3.74013]
[1730295874369,0.8055,2674.1,2673.6,3.74016]
[1730295874574,4.54509,2674.1,2673.6,7.48035]
[1730295874775,0.8055,2674.1,2673.9,3.73978]
[1730295874996,4.49631,2674.5,2673.9,4.487742]
[1730295875287,0.7572,2674.5,2674.2,3.73941]
[1730295875447,0.7572,2674.5,2673.9,0.55]
[1730295875766,0.7572,2674.5,2674.1,3.73945]
[1730295875970,4.49622,2674.5,2674.1,3.73945]
[1730295876168,4.49622,2674.5,2673.9,4.28985]
[1730295876386,0.7572,2674.5,2674.1,3.73949]
[1730295876946,0.7572,2674.5,2674.2,3.73936]
[1730295877469,4.54561,2674.8,2674.3,3.73918]
[1730295877642,4.54561,2674.8,2674.3,7.47841]
[1730295877843,3.73793,2675.3,2674.6,3.73882]
[1730295877844,0.807,2675.3,2674.6,3.73882]
[1730295878042,0.807,2675.3,2674.1,0.55]
[1730295878043,0.807,2675.3,2674.8,3.73846]
[1730295878295,3.73809,2675.2,2674.7,7.47732]
[1730295878490,0.807,2675.3,2674.3,0.55]
[1730295878637,0.807,2675.3,2674.9,3.73844]
[1730295878845,3.7381,2675.2,2674.7,3.73863]
[1730295879141,3.73819,2675.1,2674.7,3.73872]
[1730295879341,3.73819,2675.1,2674.5,3.739]
[1730295879342,3.73835,2675.0,2674.5,3.739]
[1730295879661,3.73839,2675.0,2674.5,3.73891]
[1730295880063,3.73846,2674.9,2674.5,3.73891]
[1730295880391,0.807,2675.3,2674.5,0.373891]
[1730295880555,4.9601896,2675.2,2674.0,0.70796212]
[1730295880757,3.73867,2674.8,2674.3,3.73928]
[1730295881072,0.7669,2675.0,2674.5,3.73901]
[1730295881453,4.50528,2675.0,2674.5,3.73901]
[1730295881693,0.7669,2675.0,2674.6,3.73885]
[1730295881865,4.50522,2675.0,2674.5,3.73892]
[1730295882059,4.50522,2675.0,2674.6,0.373892]
[1730295882266,0.7669,2675.0,2674.7,3.73872]
[1730295882648,0.7669,2675.0,2674.6,0.373892]
[1730295882649,4.50524,2675.0,2674.6,0.373892]
[1730295882990,4.50524,2675.0,2674.5,3.73894]
[1730295883400,3.73847,2674.9,2674.4,0.55]
[1730295883550,3.73847,2674.9,2674.4,4.28908]
[1730295883750,4.50524,2675.0,2674.5,3.73898]
[1730295883951,4.50524,2675.0,2674.5,7.47789]
[1730295884518,4.50524,2675.0,2674.5,3.73891]
[1730295884719,8.24369,2675.0,2674.5,3.73891]
[1730295885020,4.50524,2675.0,2674.5,3.73891]
[1730295885179,4.50524,2675.0,2674.5,0.8830924]
[1730295885518,3.73847,2674.9,2674.4,4.28913]
[1730295886227,4.50522,2675.0,2674.5,3.73898]
[1730295887115,8.24365,2675.0,2674.5,3.73898]
[1730295887410,8.24364,2675.0,2674.5,3.73898]
[1730295887718,8.24364,2675.0,2674.1,3.73947]
[1730295887719,3.60227699,2674.9,2674.1,3.73947]
[1730295888023,0.7953,2675.0,2673.6,0.05611174]
[1730295888208,3.73852,2674.9,2674.4,3.73907]
[1730295888715,3.73852,2674.9,2674.3,3.73916]
[1730295888716,8.13589699,2675.0,2674.5,3.739]
[1730295888921,4.39757699,2675.0,2674.5,4.486711]
[1730295889148,4.39757699,2675.0,2674.6,3.7388]
[1730295889424,4.53369,2675.0,2674.5,4.28894]
[1730295890032,4.53369,2675.0,2674.6,3.73887]
[1730295890317,4.53369,2675.0,2673.8,3.73999]
[1730295890318,3.73868,2674.8,2674.3,3.73922]
[1730295890995,3.73868,2674.8,2674.2,3.73941]
[1730295891199,3.73868,2674.8,2674.3,0.373941]
[1730295891393,3.73868,2674.8,2674.2,3.73941]
[1730295891394,3.73873,2674.7,2674.2,3.73931]
[1730295891593,3.73873,2674.7,2674.3,3.73926]
[1730295891920,3.73873,2674.7,2674.2,3.73931]
[1730295892123,3.73887,2674.6,2674.2,3.73931]
[1730295892420,3.73854,2674.9,2674.2,3.73931]
[1730295892623,4.39757699,2675.0,2674.1,0.55]
[1730295892782,4.39757699,2675.0,2674.4,3.73904]
[1730295892783,8.13590699,2675.0,2674.4,3.73904]
[1730295893475,4.39757699,2675.0,2674.6,3.73887]
[1730295893680,4.39757699,2675.0,2674.4,3.73904]
[1730295893879,4.39757699,2675.0,2674.6,3.73887]
[1730295894849,0.7953,2675.0,2674.6,3.73887]
[1730295895139,3.73873,2674.8,2674.5,0.373904]
[1730295895348,4.39757699,2675.0,2674.2,0.55]
[1730295895349,0.7953,2675.0,2674.2,0.55]
[1730295895551,0.7953,2675.0,2674.8,3.73849]
[1730295896355,0.7953,2675.0,2674.7,3.73873]
[1730295896517,0.7953,2675.0,2674.5,3.73893]
[1730295896849,0.7953,2675.0,2674.7,3.73871]
[1730295897204,0.7953,2675.0,2674.7,3.7387]
[1730295897718,3.7381,2675.2,2674.8,3.73857]
[1730295898349,7.47623,2675.2,2674.7,3.73873]
[1730295898642,7.47623,2675.2,2674.4,3.73905]
[1730295898643,0.7794,2674.9,2674.4,3.73905]
[1730295898949,3.73861,2674.8,2674.4,3.73905]
[1730295899148,3.73879,2674.7,2674.1,3.73952]
[1730295899389,4.38167699,2674.9,2674.1,0.27928979]
[1730295899390,4.51256,2674.3,2674.1,0.27928979]
[1730295899537,3.73951,2674.2,2673.7,4.01939378]
[1730295899730,4.51252,2674.3,2673.9,3.73983]
[1730295899731,0.7732,2674.3,2673.9,3.73983]
[1730295899930,4.51252,2674.3,2673.8,3.73998]
[1730295900125,4.51252,2674.3,2673.8,4.52477289]
[1730295900372,0.7732,2674.3,2673.6,0.36783887]
[1730295900577,0.8073,2673.8,2673.4,0.27939698]
[1730295900901,4.5474,2673.8,2673.1,0.27941021]
[1730295901178,4.54739,2673.8,2673.3,3.79673211]
[1730295901337,0.8073,2673.8,2673.4,3.74054]
[1730295901545,4.5473,2673.8,2673.4,0.77605702]
[1730295901740,4.5473,2673.8,2673.3,3.74062]
[1730295901949,3.74013,2673.7,2673.1,7.48175]
[1730295902243,3.74013,2673.7,2672.6,3.60227699]
[1730295902244,7.34247699,2673.7,2673.2,3.74077]
[1730295902439,0.8073,2673.8,2673.2,3.74077]
[1730295902440,4.5473,2673.8,2673.2,3.74077]
[1730295902758,0.8073,2673.8,2673.4,3.74046]
[1730295903475,0.8073,2673.8,2673.6,3.74017]
[1730295903805,0.8073,2673.8,2673.5,3.74034]
[1730295904009,0.8073,2673.8,2673.3,3.74062]
[1730295904224,0.8073,2673.8,2673.4,0.4114697]
[1730295904392,0.8073,2673.8,2673.3,7.48118]
[1730295904603,0.8073,2673.8,2673.3,3.74056]
[1730295904914,0.8073,2673.8,2673.5,3.7404]
[1730295905078,0.7566,2674.1,2673.6,3.74017]
[1730295905279,0.7566,2674.1,2673.6,4.114187]
[1730295905498,0.7566,2674.1,2673.7,3.74013]
[1730295905704,0.7566,2674.1,2673.8,3.73991]
[1730295905886,4.49626,2674.1,2673.6,4.114207]
[1730295906212,3.60227699,2674.0,2672.8,0.37241693]
[1730295906428,0.7566,2674.1,2672.4,3.75192]
[1730295906429,0.8181,2673.5,2672.4,3.75192]